Cogmind - Beta 15 @@@ ROGUE MODE // 2025.05.06 @ 20:10:36 Player: celerysam Result: Destroyed by QB-I4F(R) with Subdweller Laser Performance ------------- Evolutions (0) 0 Regions Visited (2) 400 Robots Destroyed (12) 60 Value Destroyed (259) 259 Prototype IDs (0) 0 Alien Tech Used (0) 0 Bonus (0) 0 TOTAL SCORE: 719 Bonus ------- None Cogmind --------- Core Integrity 0/250 Matter 281/300 Energy 100/100 System Corruption 0% Temperature Cool (6) Movement Core (400) Ox7 Location -10/Subcaves Parts ------- > --- POWER (1) -------- (None) > --- PROPULSION (2) --- (None) > --- UTILITY (2) ------ Large Storage Unit Structural Scanner > --- WEAPON (2) ------- Particle Gun > --- INVENTORY (15) --- Ion Engine Light Ion Engine Light Treads Light Treads Light Treads Aluminum Leg Wheel Light Armor Plating Hardened Light Armor Plating Medium Laser Particle Gun Particle Gun Mining Laser Mining Laser Peak State ------------ > --- POWER ------------ Ion Engine > --- PROPULSION ------- Aluminum Leg Aluminum Leg > --- UTILITY ---------- Large Storage Unit Structural Scanner > --- WEAPON ----------- Particle Gun Particle Gun > --- INVENTORY -------- Light Ion Engine Light Treads Light Treads Wheel Compact Wheel Light Armor Plating Hardened Light Armor Plating EM Pulse Gun Medium Laser Assault Rifle Mining Laser [Rating: 10] Favorites ----------- Power Ion Engine Engine Ion Engine Propulsion Aluminum Leg Leg Aluminum Leg Wheel Wheel Utility Structural Scanner Device Structural Scanner Storage Large Storage Unit Weapon Assault Rifle Energy Gun Medium Laser Ballistic Gun Assault Rifle Build | -11 -10 -10 ------- Run | Yrd Mat Sub Slots Evolved . | . . . Power . | . . . Propulsion . | . . . Utility . | . . . Weapon . | . . . Parts Attached 16 | 6 9 1 Power 2 | 1 1 . Engine 2 | 1 1 . Core . | . . . Reactor . | . . . Propulsion 5 | 2 3 . Treads . | . . . Leg 3 | 2 1 . Wheel 2 | . 2 . Hover . | . . . Flight . | . . . Utility 3 | 1 2 . Device 1 | . 1 . Storage 2 | 1 1 . Processor . | . . . Hackware . | . . . Protection . | . . . Artifact . | . . . Weapon 6 | 2 3 1 Energy Gun 5 | 1 3 1 Energy Cannon . | . . . Ballistic Gun 1 | 1 . . Ballistic Cannon . | . . . Launcher . | . . . Special Weapon . | . . . Impact Weapon . | . . . Slashing Weapon . | . . . Piercing Weapon . | . . . Special Melee Weapon . | . . . Unidentified Prototypes . | . . . Parts Lost 6 | . 1 5 Power 1 | . . 1 Propulsion 3 | . 1 2 Utility . | . . . Weapon 2 | . . 2 Highest Loss Streak 5 | . 1 5 To Critical Strikes . | . . . Average Backups 9 | 5 9 14 Power 1 | . 1 2 Propulsion 4 | 3 4 4 Utility 1 | . 1 2 Weapon 3 | 1 3 5 Tool/Special . | . . . Unused Backups 11 | . 2 9 Power 2 | . . 2 Propulsion 5 | . 2 3 Utility 2 | . . 2 Weapon 2 | . . 2 Tool/Special . | . . . Average Slot Usage (%) 97 | . 99 75 Engine 13 | . 14 9 Leg 25 | . 27 . Wheel 1 | . . 18 Device 13 | . 13 14 Storage 14 | . 14 14 Energy Gun 14 | . 14 14 Ballistic Gun 12 | . 13 4 Peak Build Rating 10 | 6 10 9 Average Rating 7 | 4 7 6 On Entrance 4 | . 6 8 Naked Turns . | . . . Heaviest Build 32 | 12 32 30 Greatest Support 26 | 20 26 26 Greatest Overweight (x) 7 | . 2 7 Average Overweight (x) . | . . 1 Largest Inventory Capacity 15 | 8 15 15 Average Capacity 11 | 7 12 15 Most Carried 15 | 8 15 15 Average Carried 9 | 5 9 14 Final Capacity 15 | 8 15 15 Final Carried 14 | 6 14 14 Class Distribution -------------------- 100% | Mutant Dominant Class ---------------- Mutant | -10/Materials Mutant | -10/Subcaves Resources | -11 -10 -10 ----------- Run | Yrd Mat Sub Matter Collected 393 | 260 133 . Remotely . | . . . Salvage Created 324 | . 324 . Parts 20 | . 20 . Haulers Intercepted . | . . . Recyclers Shooed . | . . . Parts Field Recycled . | . . . Retrieved Matter . | . . . Parts Self-Destructed . | . . . Prevented . | . . . Kills | -11 -10 -10 ------- Run | Yrd Mat Sub Combat Hostiles Destroyed 11 | . 11 . Guns 11 | . 11 . Classes Destroyed 3 | . 3 . Watcher 1 | . 1 . Swarmer 6 | . 6 . Grunt 5 | . 5 . Best Kill Streak 4 | . 4 . Combat Bots Only 4 | . 4 . Max Kills in Single Turn 1 | . 1 . Gunslinging . | . . . Exploded . | . . . Melee . | . . . Uniques/NPCs Destroyed . | . . . Combat | -11 -10 -10 -------- Run | Yrd Mat Sub Hostile Shots Fired 101 | . 69 32 Missed 28 | . 21 7 Hits 73 | . 48 25 Projectile 73 | . 48 25 Critical Strikes 2 | . . 2 Damage Taken 1066 | . 535 531 Core 267 | . 101 166 Absorbed by Shields . | . . . Core Remaining (%) 100 | 100 . . Volleys Fired 37 | . 32 5 Largest 2 | . 2 2 Hottest 130 | . 130 105 Shots Fired 71 | . 64 7 Gun 71 | . 64 7 Cannon . | . . . Launcher . | . . . Special . | . . . Kinetic 24 | . 24 . Thermal 32 | . 27 5 Explosive . | . . . Electromagnetic 15 | . 13 2 Robot Hit Streak 15 | . 12 15 Robot Miss Streak 2 | . 2 1 Penetration Max . | . . . Secondary Targets 1 | . 1 . Max Gunslinging Chain 1 | . 1 . Shots Hit Robots 50 | . 44 6 Core Hits 18 | . 18 . Critical Kills . | . . . Critical Parts Destroyed . | . . . Critical Strikes 3 | . 1 2 Burn 2 | . 1 1 Corrupt 1 | . . 1 Melee Attacks . | . . . Impact . | . . . Slashing . | . . . Piercing . | . . . Sneak Attacks . | . . . Combat Hostiles . | . . . Follow-up Attacks . | . . . Damage Inflicted 688 | . 602 86 Guns 688 | . 602 86 Cannons . | . . . Explosions . | . . . Melee . | . . . Ramming . | . . . Kinetic 173 | . 173 . Thermal 333 | . 269 64 Explosive . | . . . Electromagnetic 182 | . 160 22 Impact . | . . . Slashing . | . . . Piercing . | . . . Highest Corruption . | . . . Average Corruption . | . . . Corruption Purged . | . . . Corruption Blocked . | . . . Overload Shots . | . . . Overflow Damage . | . . . Projectiles . | . . . Explosions . | . . . Melee . | . . . Knockbacks . | . . . Impact . | . . . Kinetic . | . . . Secondary . | . . . Self-Inflicted Damage . | . . . Shots . | . . . Rammed . | . . . Targets Rammed . | . . . Kicked . | . . . Crushed . | . . . Highest Temperature 466 | . 466 1 Average Temperature 105 | . 108 1 Received Heat Transfer 312 | . 234 78 Effects 2 | . 2 . Shutdowns 1 | . 1 . Energy Bleed 1 | . 1 . Siege Activations . | . . . Martial Activations . | . . . Shielding Activations . | . . . Robots Disrupted . | . . . Combat Hostiles . | . . . Robots Corrupted . | . . . Combat Hostiles . | . . . Parts Fried . | . . . Impact Corruptions . | . . . Robots Melted . | . . . Combat Hostiles . | . . . Parts Melted 3 | . 3 . Heat Transferred 1036 | . 814 222 Parts Sabotaged . | . . . Parts Stolen . | . . . Parts Stripped . | . . . Power Chain Reactions . | . . . Alert | -11 -10 -10 ------- Run | Yrd Mat Sub Maximum Alert Level . | . . . Low Security (%) 100 | 100 100 . Level 1 . | . . . Level 2 . | . . . Level 3 . | . . . Level 4 . | . . . Level 5 . | . . . High Security . | . . . Max Security . | . . . Peak Influence 135 | . 135 . Initial . | . . . Average 37 | . 42 . Influence Increases 307 | . 307 . Destroy 0b10 Robot/C 220 | . 220 . Destroy 0b10 Robot/NC 5 | . 5 . Destroy Leader 42 | . 42 . Successful Hack 9 | . 9 . Destroy Structure 1 | . 1 . Lose Combat Pursuer 30 | . 30 . Influence Decreases 307 | . 275 32 Entered New Map 16 | . . 16 Time Decay 265 | . 265 . Lost Part 26 | . 10 16 Squads Dispatched 1 | . 1 . Investigation . | . . . Extermination . | . . . Reinforcement 1 | . 1 . Assault . | . . . Garrison . | . . . Intercept . | . . . Searches Triggered . | . . . Construction Impeded . | . . . Haulers Reinforced . | . . . Active Scanning Responses . | . . . Cargo Convoy Interrupts . | . . . Stealth | -11 -10 -10 --------- Run | Yrd Mat Sub Distress Signals 2 | . 2 . Communications Jammed . | . . . Distress Signals . | . . . Times Spotted 19 | . 17 2 Peak Tracking Total 6 | . 6 2 Tactical Retreats 2 | . 2 . Traps | -11 -10 -10 ------- Run | Yrd Mat Sub Traps Triggered . | . . . Indirectly . | . . . Trap Hack Attempts . | . . . Triggered . | . . . Disarmed . | . . . Reprogrammed . | . . . Reused . | . . . Traps Extracted . | . . . Installed . | . . . Triggered . | . . . Machines | -11 -10 -10 ---------- Run | Yrd Mat Sub Machines Disabled . | . . . Max in Single Turn . | . . . Machines Repaired . | . . . Machines Dismantled . | . . . Machines Sabotaged . | . . . Overloaded Fab Kills . | . . . Hacking | -11 -10 -10 --------- Run | Yrd Mat Sub Machines Accessed 3 | . 3 . Terminals 3 | . 3 . Fabricators . | . . . Repair Stations . | . . . Recycling Units . | . . . Scanalyzers . | . . . Garrison Access . | . . . Total Hacks 3 | . 3 . Successful 3 | . 3 . Failed . | . . . Catastrophic . | . . . Database Lockouts . | . . . Manual 3 | . 3 . Terminals 3 | . 3 . Fabricators . | . . . Repair Stations . | . . . Recycling Units . | . . . Scanalyzers . | . . . Garrison Access . | . . . Terminal Hacks . | . . . Fabricator Hacks . | . . . Repair Station Hacks . | . . . Recycling Unit Hacks . | . . . Scanalyzer . | . . . Garrison Access Hacks . | . . . Unauthorized Hacks 3 | . 3 . Terminals 3 | . 3 . Botnet 3 | . 3 . Fabricators . | . . . Repair Stations . | . . . Recycling Units . | . . . Scanalyzers . | . . . Garrison Access . | . . . Data Cores Recovered . | . . . Used . | . . . Hacking Detections 1 | . 1 . Full Trace Events . | . . . Feedback Events . | . . . Feedback Blocked . | . . . Robot Schematics Acquired . | . . . Robots Built . | . . . Authchips . | . . . Time . | . . . Total Robot Build Rating . | . . . Part Schematics Acquired . | . . . Parts Built . | . . . Authchips . | . . . Time . | . . . Total Part Build Rating . | . . . Parts Repaired . | . . . Time . | . . . Parts Recycled . | . . . Recycled Matter . | . . . Retrieved Matter . | . . . Retrieved Components . | . . . Parts Scanalyzed . | . . . Part Schematics Acquired . | . . . Parts Damaged . | . . . Bothacking | -11 -10 -10 ------------ Run | Yrd Mat Sub Used RIF Installer . | . . . Robots Hacked . | . . . Non-combat . | . . . Combat . | . . . Robot Hacks Applied . | . . . Relay Couplers Released . | . . . Fabnet Peak Effective % . | . . . Robots Rewired . | . . . Allies Hacked . | . . . Hacks Repelled . | . . . Allies | -11 -10 -10 -------- Run | Yrd Mat Sub Total Allies . | . . . Largest Group . | . . . Highest-Rated Group . | . . . Highest-Rated Ally . | . . . Total Orders . | . . . Ally Attacks . | . . . Total Damage . | . . . Kills . | . . . Allies Corrupted . | . . . Allies Melted . | . . . Intel | -11 -10 -10 ------- Run | Yrd Mat Sub Active Infowar (turns) 820 | . 776 44 Structural 820 | . 776 44 Robot Analysis Total . | . . . Derelict Logs Recovered . | . . . Drone Launches . | . . . Drone Recoveries . | . . . Exploration | -11 -10 -10 ------------- Run | Yrd Mat Sub Turns Passed 950 | 119 787 44 Spaces Moved 515 | 81 412 22 Core 19 | 17 . 2 Treads . | . . . Legs 466 | 64 402 . Wheels 30 | . 10 20 Hover . | . . . Flight . | . . . Fastest Speed 50 | 50 105 105 Average Speed 141 | 105 149 133 Slowest Speed 400 | 120 260 400 Overloaded Moves . | . . . Propulsion Burnouts . | . . . Robots Hopped . | . . . Potential Cave-ins . | . . . Cave-ins Triggered . | . . . Exploration Rate (%) 26 | 6 69 3 Regions Visited 2 Branch Regions 1 Pre-discovered Areas . | . . . Known Exits Taken . | . . . Unknown Exits Taken 2 | 1 1 . Scrap Searched . | . . . Spaces Dug . | . . . Terrain Destroyed . | . . . Melee . | . . . Projectile . | . . . AOE . | . . . Terrain Rammed . | . . . Walls Destroyed . | . . . Machines Disabled . | . . . Actions | -11 -10 -10 --------- Run | Yrd Mat Sub Total 660 | 112 519 29 Wait 67 | 18 49 . Move 513 | 80 411 22 Hop . | . . . Pick Up 21 | 8 12 1 Fast Attach 4 | 4 . . Attach 5 | 2 2 1 Detach . | . . . Swap 8 | . 8 . Drop 5 | . 5 . Fire 37 | . 32 5 Melee . | . . . Ram . | . . . Kick . | . . . Crush . | . . . Escape Stasis . | . . . Rewire . | . . . Trap . | . . . Miscellaneous . | . . . Route ------- -11/Scrapyard -10/Materials (discovered 4 exits: [*Mat] / [*Min x2] / [*Sub]) -10/Subcaves History --------- Turn | Location | Event 10 | -11/Scrapyard | Discovered new exit (range 16) 120 | -11/Scrapyard | Entered Materials 274 | -10/Materials | Discovered new exit (range 7) 323 | -10/Materials | Build established: Mutant 323 | -10/Materials | Discovered new exit (range 7) 390 | -10/Materials | Discovered new exit (range 8) 871 | -10/Materials | Discovered new exit (range 9) 907 | -10/Materials | Entered Subcaves 908 | -10/Subcaves | Approached by a straggling Scientist 930 | -10/Subcaves | Core integrity fell below 50% 940 | -10/Subcaves | Core integrity fell below 20% 951 | -10/Subcaves | Destroyed by QB-I4F(R) with Subdweller Laser Last Messages --------------- 00901_ T-07 Excavator is excavating. 00901_ U-05 Engineer lays Concrete. 00906_ T-07 Excavator is excavating. LOCATION=UNKNOWN AMBIENT_HEAT=-10 GOAL=ESCAPE 00908_ Q8-BR5(c): "Thank the algorithms! I was beginning to lose hope I'd never make it past all the Subs lurking out here." 00908_ Q8-BR5(c) destroyed. 00915_ Assault Rifle destroyed. 00916_ Acquired Wheel. 00918_ Tech Extrapolator violently self-destructs. 00922_ Com. Wheel destroyed. 00926_ EM Pulse Gun destroyed. 00927_ OO-74P(R) IFF system glitched. 00927_ OO-74P(R) suffers critical hit (Burn). 00933_ Ion Engine destroyed. 00942_ Wheel destroyed. Map ----- +----------------------------------------------------+ | ?????????????????????????????????????????????????? | | ?????????????????????????????????????????????????? | | ?????????????????????????????????????????????????? | | ?????????????????????????????????????????????????? | | ?????????????????????????????????????????????????? | | ?????????????????????????????????????????????????? | | ?????????????????????????????????????????????????? | | ?????????????????????????????????????????????????? | | ?????????????????????????????????????????????????? | | ?????????????????????????????????????????????????? | | ?????????????????????????????????????????????????? | | ?????????????????????????????????????????????????? | | ?????????????????????????????????????????????????? | | ?????????????????????????????????????????????????? | | ?????????????????????????????????????????????????? | | ?????????????????????????????????????????????????? | | ?????????????????????????????????????????????????? | | ???????????????????? ## ?????????????????????????? | | ????????????????????### ?????????????????????????? | | ???????????????????### ???????????####??????????? | | ??????????????######## ################?????????? | | ??????????????####### ############ ####????????? | | ??????????????## ### ### ####???????? | | ??????????????## ### ###???????? | | ??????????????## ## ##???????? | | ??????????????## ????## @ ##???????? | | ?????????????????????## ## ## ###???????? | | ?????????????????????## #### R## ###????????? | | ?????????????????????## ##### ###????????? | | ?????????????????????######## ###????????? | | ?????????????????????####?## ##????????? | | ??????????????????????????## ### ##????????? | | ??????????????????????????## #### %##????????? | | ??????????????????????????## ### ###????????? | | ??????????????????????????### ## ###????????? | | ??????????????????????????####### ###????????? | | ???????????????????????######### ##????????? | | ???????????????????????### # # ## ###????????? | | ???????????????????????## ##????????? | | ???????????????????????## # #### ##????????? | | ???????????????????????## ####### ##????????? | | ???????????????????????????????#### ##????????? | | ????????????????????????????????#### ##????????? | | ?????????????????????????????????### ##????????? | | ??????????????????????????????????## ##????????? | | ?????????????????????????????????? ##????????? | | ???????????????????????????????????? ###????????? | | ??????????????????????????????????? ####????????? | | ??????????????????????????????????? ####?????????? | | ???????????????????????????????????###???????????? | +----------------------------------------------------+ Best States ------------- Heat Dissipation 25 Energy Generation 10 Energy Capacity 250 Matter Stores 300 Matter Capacity 300 Sight Range 16 Terrain Scan Density 10 Evasion (%) 55 Item Schematics ----------------- None Robot Schematics ------------------ None Fabricated ------------ Nothing Repaired ---------- Nothing Alien Tech Used ----------------- None Achievements -------------- None Challenges ------------ None Game ------ Seed ContainmentResetDirector Manual? 0 Play Time 00:07:27 Cumulative 234.3 hours Start 2025.05.06 @ 20:02:34 End 2025.05.06 @ 20:10:36 Sessions 1 Manual Loads 0 Difficulty Rogue Special Mode None Game No. 349 Rogue 349 Adventurer 0 Explorer 0 Win Type - Total 1 Types 1/0/0/0/0/0/0/0/0/0 Lore% 42 Gallery% 59 Achievement% 43 Wizard Run 0 Options --------- Layout 1 ASCII 0 Keyboard 0 Movement Mouse Keybinds 0 Fullscreen 2 Font 24/Smallcaps Map View 50x35 Zoom Use 0% Tactical HUD 1 Map Filters NONE Filters NONE Steam 1 RUN: a6c31da1-1775-48d9-a592-b2b66bc6dfcc